fUSD/lending_fUSD_20260416
["ID","MTS","AMOUNT","RATE_DAILY","PERIOD"]
[420586944,1776275445002,-150.0,0.0001366,2]
[420586945,1776275445017,-150.0,0.0001366,2]
[420586946,1776275445036,-150.0,0.0001366,2]
[420586947,1776275445048,-487.10405518,0.00013687,2]
[420586948,1776275445065,-500.0,0.00013697,2]
[420586949,1776275445091,-500.0,0.00013697,2]
[420586950,1776275445113,-500.0,0.00013697,2]
[420586951,1776275445135,-1964.64918844,0.00013697,2]
[420586952,1776275445147,-395.83658215,0.00013697,2]
[420586953,1776275445175,-500.0,0.00013697,2]
[420586954,1776275445186,-500.0,0.00013697,2]
[420586955,1776275445206,-500.0,0.00013697,2]
[420586956,1776275445226,-1964.64918844,0.00013697,2]
[420586957,1776275445238,-1964.64918844,0.00013697,2]
[420586958,1776275445263,-418.77036081,0.00013697,2]
[420586959,1776275445275,-521.10400845,0.00013697,2]
[420586960,1776275445290,-500.0,0.00013697,2]
[420586961,1776275445301,-1964.64918844,0.00013697,2]
[420586962,1776275445316,-500.0,0.00013697,2]
[420586963,1776275445326,-1964.64918844,0.00013697,2]
[420586964,1776275445343,-1964.64918844,0.00013697,2]
[420586965,1776275445355,-500.0,0.00013697,2]
[420586966,1776275445371,-1964.64918844,0.00013697,2]
[420586967,1776275445388,-1964.64918844,0.00013697,2]
[420586968,1776275445408,-1964.64918844,0.00013697,2]
[420586969,1776275445422,-1964.64918844,0.00013697,2]
[420586970,1776275445440,-1964.64918844,0.00013697,2]
[420586971,1776275445460,-1964.64918844,0.00013697,2]
[420586972,1776275445491,-1964.64918844,0.00013697,2]
[420586973,1776275445519,-1964.64918844,0.00013697,2]
[420586974,1776275445530,-1964.64918844,0.00013697,2]
[420586975,1776275445567,-1964.64918844,0.00013697,2]
[420586976,1776275445585,-1964.64918844,0.00013697,2]
[420586977,1776275445608,-1964.64918844,0.00013697,2]
[420586978,1776275445618,-1964.64918844,0.00013697,2]
[420586979,1776275445640,-1964.64918844,0.00013697,2]
[420586980,1776275445657,-1964.64918844,0.00013697,2]
[420586981,1776275445671,-1964.64918844,0.00013697,2]
[420586983,1776275445682,-1964.64918844,0.00013697,2]
[420586985,1776275445703,-1964.64918844,0.00013697,2]
[420586987,1776275445715,-1964.64918844,0.00013697,2]
[420586989,1776275445725,-1964.64918844,0.00013697,2]
[420586991,1776275445746,-1964.64918844,0.00013697,2]
[420586993,1776275445758,-1964.64918844,0.00013697,2]
[420586995,1776275445768,-1964.64918844,0.00013697,2]
[420586996,1776275445789,-1964.64918844,0.00013697,2]
[420586998,1776275445801,-1964.64918844,0.00013697,2]
[420587000,1776275445811,-500.0,0.00013697,2]
[420587002,1776275445832,-428.03522177,0.00013697,2]
[420587004,1776275445843,-2000.14540801,0.00013697,2]
[420587006,1776275445853,-2000.14540801,0.00013697,2]
[420587007,1776275445867,-2000.14540801,0.00013697,2]
[420587009,1776275445881,-2000.14540801,0.00013697,2]
[420587012,1776275445893,-2000.14540801,0.00013697,2]
[420587015,1776275445903,-2000.14540801,0.00013697,2]
[420587018,1776275445925,-2000.14540801,0.00013697,2]
[420587021,1776275445935,-2000.14540801,0.00013697,2]
[420587024,1776275445949,-2000.14540801,0.00013697,2]
[420587026,1776275445966,-2000.14540801,0.00013697,2]
[420587029,1776275445977,-2000.14540801,0.00013697,2]
[420587031,1776275445990,-2000.14540801,0.00013697,2]
[420587033,1776275446006,-2000.14540801,0.00013697,2]
[420587034,1776275446017,-2000.14540801,0.00013697,2]
[420587035,1776275446029,-2000.14540801,0.00013697,2]
[420587036,1776275446044,-2000.14540801,0.00013697,2]
[420587037,1776275446057,-2000.14540801,0.00013697,2]
[420587038,1776275446071,-2000.14540801,0.00013697,2]
[420587039,1776275446082,-2000.14540801,0.00013697,2]
[420587040,1776275446101,-2000.14540801,0.00013697,2]
[420587041,1776275446111,-2000.14540801,0.00013697,2]
[420587042,1776275446122,-2000.14540801,0.00013697,2]
[420587043,1776275446142,-2000.14540801,0.00013697,2]
[420587044,1776275446152,-1964.95766472,0.00013697,2]
[420587045,1776275446163,-1964.95766472,0.00013697,2]
[420587046,1776275446175,-1964.95766472,0.00013697,2]
[420587047,1776275446196,-1964.95766472,0.00013697,2]
[420587048,1776275446210,-1964.95766472,0.00013697,2]
[420587049,1776275446225,-1964.95766472,0.00013697,2]
[420587050,1776275446239,-1964.95766472,0.00013697,2]
[420587051,1776275446250,-1964.95766472,0.00013697,2]
[420587052,1776275446262,-1964.95766472,0.00013697,2]
[420587053,1776275446281,-1964.95766472,0.00013697,2]
[420587054,1776275446291,-1964.95766472,0.00013697,2]
[420587055,1776275446301,-1964.95766472,0.00013697,2]
[420587056,1776275446319,-1964.95766472,0.00013697,2]
[420587057,1776275446329,-1964.95766472,0.00013697,2]
[420587058,1776275446339,-1964.95766472,0.00013697,2]
[420587059,1776275446349,-1964.95766472,0.00013697,2]
[420587060,1776275446367,-1964.95766472,0.00013697,2]
[420587061,1776275446377,-1964.95766472,0.00013697,2]
[420587062,1776275446387,-1964.95766472,0.00013697,2]
[420587063,1776275446398,-1964.95766472,0.00013697,2]
[420587064,1776275446413,-1964.95766472,0.00013697,2]
[420587065,1776275446423,-1894.78060526,0.00013697,2]
[420587066,1776275446433,-1894.78060526,0.00013697,2]
[420587067,1776275446445,-1894.78060526,0.00013697,2]
[420587068,1776275446457,-1894.78060526,0.00013697,2]
[420587069,1776275446467,-1894.78060526,0.00013697,2]
[420587070,1776275446477,-1894.78060526,0.00013697,2]
[420587071,1776275446487,-1894.78060526,0.00013697,2]
[420587072,1776275446497,-1894.78060526,0.00013697,2]
[420587073,1776275446508,-1894.78060527,0.00013697,2]
[420587074,1776275446518,-1894.78060527,0.00013697,2]
[420587075,1776275446529,-1894.78060527,0.00013697,2]
[420587076,1776275446540,-1894.78060527,0.00013697,2]
[420587077,1776275446551,-1894.78060527,0.00013697,2]
[420587078,1776275446564,-1894.78060525,0.00013697,2]
[420587079,1776275446576,-500.0,0.00013698,2]
[420587080,1776275446587,-500.0,0.00013698,2]
[420587081,1776275446597,-500.0,0.00013698,2]
[420587082,1776275446607,-500.0,0.00013698,2]
[420587083,1776275446616,-500.0,0.00013698,2]
[420587084,1776275446626,-500.0,0.00013698,2]
[420587085,1776275446636,-500.64267626,0.00013698,2]
[420587086,1776275446646,-500.0,0.00013698,2]
[420587087,1776275446656,-500.0,0.00013698,2]
[420587088,1776275446665,-500.0,0.00013698,2]
[420587089,1776275446677,-500.0,0.00013698,2]
[420587090,1776275446686,-500.0,0.00013698,2]
[420587091,1776275446696,-500.0,0.00013698,2]
[420587092,1776275446706,-500.0,0.00013698,2]
[420587093,1776275446716,-500.0,0.00013698,2]
[420587094,1776275446726,-500.0,0.00013698,2]
[420587095,1776275446737,-500.0,0.00013698,2]
[420587096,1776275446746,-500.0,0.00013698,2]
[420587097,1776275446756,-500.0,0.00013698,2]
[420587098,1776275446766,-500.0,0.00013698,2]
[420587099,1776275446777,-500.0,0.00013698,2]
[420587100,1776275446786,-500.0,0.00013698,2]
[420587101,1776275446799,-500.0,0.00013698,2]
[420587102,1776275446809,-500.0,0.00013698,2]
[420587103,1776275446819,-500.0,0.00013698,2]
[420587104,1776275446828,-500.0,0.00013698,2]
[420587105,1776275446838,-500.0,0.00013698,2]
[420587106,1776275446848,-500.0,0.00013698,2]
[420587107,1776275446858,-500.0,0.00013698,2]
[420587108,1776275446868,-500.0,0.00013698,2]
[420587109,1776275446879,-500.0,0.00013698,2]
[420587110,1776275446889,-500.0,0.00013698,2]
[420587111,1776275446899,-500.0,0.00013698,2]
[420587112,1776275446909,-500.0,0.00013698,2]
[420587113,1776275446923,-500.0,0.00013698,2]
[420587114,1776275446933,-359.52038426,0.00013698,2]
[420587115,1776275446945,-500.0,0.00013698,2]
[420587118,1776275446956,-500.0,0.00013698,2]
[420587120,1776275446967,-500.0,0.00013698,2]
[420587122,1776275446978,-500.0,0.00013698,2]
[420587123,1776275446989,-500.0,0.00013698,2]
[420587124,1776275447000,-500.0,0.00013698,2]
[420587126,1776275447010,-500.0,0.00013698,2]
[420587128,1776275447020,-500.0,0.00013698,2]
[420587130,1776275447030,-500.0,0.00013698,2]
[420587133,1776275447046,-500.0,0.00013698,2]
[420587135,1776275447056,-215.99718507,0.00013698,2]
[420587137,1776275447068,-500.0,0.00013698,2]
[420587139,1776275447082,-500.0,0.00013698,2]
[420587141,1776275447093,-500.0,0.00013698,2]
[420587143,1776275447117,-500.0,0.00013698,2]
[420587145,1776275447145,-500.0,0.00013698,2]
[420587147,1776275447192,-500.0,0.00013698,2]
[420587149,1776275447316,-500.0,0.00013698,2]
[420587151,1776275447557,-500.0,0.00013698,2]
[420587153,1776275447785,-500.0,0.00013698,2]
[420587155,1776275448031,-500.0,0.00013698,2]
[420587157,1776275448249,-500.0,0.00013698,2]
[420587159,1776275448477,-500.0,0.00013698,2]
[420587161,1776275448621,-500.0,0.00013698,2]
[420587163,1776275448773,-500.0,0.00013698,2]
[420587165,1776275448916,-500.0,0.00013698,2]
[420587167,1776275449020,-500.0,0.00013698,2]
[420587169,1776275449089,-500.0,0.00013698,2]
[420587171,1776275449123,-500.0,0.00013698,2]
[420587173,1776275449157,-500.0,0.00013698,2]
[420587175,1776275449181,-500.0,0.00013698,2]
[420587177,1776275449202,-500.0,0.00013698,2]
[420587179,1776275449224,-500.0,0.00013698,2]
[420587180,1776275449241,-500.0,0.00013698,2]
[420587181,1776275449261,-500.0,0.00013698,2]
[420587183,1776275449272,-494.99164555,0.00013698,2]
[420587184,1776275449290,-500.0,0.00013698,2]
[420587185,1776275449304,-500.0,0.00013698,2]
[420587186,1776275449315,-500.0,0.00013698,2]
[420587187,1776275449331,-500.0,0.00013698,2]
[420587188,1776275449341,-500.0,0.00013698,2]
[420587189,1776275449355,-500.0,0.00013698,2]
[420587190,1776275449365,-500.0,0.00013698,2]
[420587191,1776275449380,-500.0,0.00013698,2]
[420587192,1776275449392,-500.0,0.00013698,2]
[420587193,1776275449403,-251.48762015,0.00013698,2]
[420587194,1776275449413,-517.68,0.00013698,2]
[420587195,1776275449431,-517.68,0.00013698,2]
[420587196,1776275449445,-517.68,0.00013698,2]
[420587197,1776275449456,-517.68,0.00013698,2]
[420587198,1776275449478,-517.68,0.00013698,2]
[420587199,1776275449491,-517.68,0.00013698,2]
[420587200,1776275449503,-517.68,0.00013698,2]
[420587201,1776275449517,-517.68,0.00013698,2]
[420587202,1776275449533,-517.68,0.00013698,2]
[420587203,1776275449546,-517.68,0.00013698,2]
[420587204,1776275449562,-517.68,0.00013698,2]
[420587205,1776275449575,-517.68,0.00013698,2]
[420587206,1776275449584,-517.68,0.00013698,2]
[420587207,1776275449605,-517.68,0.00013698,2]
[420587208,1776275449620,-517.68,0.00013698,2]
[420587209,1776275449631,-500.0,0.00013698,2]
[420587210,1776275449649,-500.0,0.00013698,2]
[420587211,1776275449665,-500.0,0.00013698,2]
[420587212,1776275449675,-608.43188269,0.00013698,2]
[420587213,1776275449691,-553.46,0.00013698,2]
[420587214,1776275449706,-553.46,0.00013698,2]
[420587215,1776275449716,-553.46,0.00013698,2]
[420587216,1776275449729,-553.46,0.00013698,2]
[420587217,1776275449744,-553.46,0.00013698,2]
[420587218,1776275449757,-553.46,0.00013698,2]
[420587219,1776275449767,-553.46,0.00013698,2]
[420587220,1776275449783,-553.46,0.00013698,2]
[420587221,1776275449797,-553.46,0.00013698,2]
[420587222,1776275449806,-553.46,0.00013698,2]
[420587223,1776275449818,-553.46,0.00013698,2]
[420587224,1776275449831,-553.46,0.00013698,2]
[420587225,1776275449842,-553.46,0.00013698,2]
[420587226,1776275449851,-553.46,0.00013698,2]
[420587227,1776275449861,-553.46,0.00013698,2]
[420587228,1776275449875,-500.0,0.00013698,2]
[420587229,1776275449885,-500.0,0.00013698,2]
[420587230,1776275449895,-500.0,0.00013698,2]
[420587231,1776275449905,-500.0,0.00013698,2]
[420587232,1776275449919,-500.0,0.00013698,2]
[420587233,1776275449928,-500.0,0.00013698,2]
[420587234,1776275449938,-500.0,0.00013698,2]
[420587235,1776275449949,-500.0,0.00013698,2]
[420587236,1776275449963,-500.0,0.00013698,2]
[420587237,1776275449973,-500.0,0.00013698,2]
[420587238,1776275449982,-500.0,0.00013698,2]
[420587239,1776275449993,-500.0,0.00013698,2]
[420587240,1776275450007,-2073.08,0.00013699,2]
[420587241,1776275450017,-166.66,0.00013699,2]
[420587242,1776275450029,-502.89866858,0.00013699,2]
[420587243,1776275450040,-500.40753993,0.00013699,2]
[420587244,1776275450053,-241.93335793,0.00013699,2]
[420587245,1776275450065,-4380.0,0.00013699,2]
[420587246,1776275450075,-500.0,0.00013699,2]
[420587247,1776275450085,-500.0,0.00013699,2]
[420587248,1776275450096,-500.0,0.00013699,2]
[420587249,1776275450109,-500.0,0.00013699,2]
[420587250,1776275450118,-500.0,0.00013699,2]
[420587251,1776275450128,-500.0,0.00013699,2]
[420587252,1776275450140,-500.0,0.00013699,2]
[420587253,1776275450153,-500.0,0.00013699,2]
[420587254,1776275450162,-500.0,0.00013699,2]
[420587255,1776275450172,-500.0,0.00013699,2]
[420587256,1776275450184,-500.0,0.00013699,2]
[420587257,1776275450195,-500.0,0.00013699,2]
[420587258,1776275450204,-500.0,0.00013699,2]
[420587259,1776275450215,-500.0,0.00013699,2]
[420587260,1776275450227,-500.0,0.00013699,2]
[420587261,1776275450239,-500.0,0.00013699,2]
[420587262,1776275450249,-500.0,0.00013699,2]
[420587263,1776275450258,-500.0,0.00013699,2]
[420587264,1776275450269,-500.0,0.00013699,2]
[420587265,1776275450280,-500.0,0.00013699,2]
[420587266,1776275450290,-500.0,0.00013699,2]
[420587267,1776275450300,-500.0,0.00013699,2]
[420587268,1776275450310,-500.0,0.00013699,2]
[420587269,1776275450320,-500.0,0.00013699,2]
[420587270,1776275450331,-500.0,0.00013699,2]
[420587271,1776275450340,-186.382839,0.00013699,2]
[420587272,1776275450363,-500.0,0.00013699,2]
[420587273,1776275450375,-500.0,0.00013699,2]
[420587274,1776275450385,-500.0,0.00013699,2]
[420587275,1776275450395,-500.0,0.00013699,2]
[420587276,1776275450408,-500.0,0.00013699,2]
[420587277,1776275450417,-500.0,0.00013699,2]
[420587278,1776275450426,-500.0,0.00013699,2]
[420587279,1776275450436,-500.0,0.00013699,2]
[420587280,1776275450445,-500.0,0.00013699,2]
[420587281,1776275450456,-500.0,0.00013699,2]
[420587282,1776275450466,-500.0,0.00013699,2]
[420587283,1776275450476,-500.0,0.00013699,2]
[420587284,1776275450485,-1203.93931368,0.00013699,2]
[420587285,1776275450496,-1203.93931368,0.00013699,2]
[420587286,1776275450506,-1203.93931368,0.00013699,2]
[420587287,1776275450515,-1203.93931368,0.00013699,2]
[420587288,1776275450524,-1203.93931368,0.00013699,2]
[420587289,1776275450534,-1203.93931368,0.00013699,2]
[420587290,1776275450544,-1203.93931368,0.00013699,2]
[420587291,1776275450555,-1203.93931368,0.00013699,2]
[420587292,1776275450564,-1203.93931368,0.00013699,2]
[420587293,1776275450573,-1203.93931368,0.00013699,2]
[420587294,1776275450584,-1203.93931368,0.00013699,2]
[420587295,1776275450594,-1203.93931368,0.00013699,2]
[420587296,1776275450603,-1203.93931368,0.00013699,2]
[420587297,1776275450612,-1203.93931368,0.00013699,2]
[420587298,1776275450622,-1203.93931368,0.00013699,2]
[420587299,1776275450632,-1203.93931368,0.00013699,2]
[420587300,1776275450641,-1203.93931368,0.00013699,2]
[420587301,1776275450651,-1203.93931368,0.00013699,2]
[420587302,1776275450660,-1203.93931368,0.00013699,2]
[420587303,1776275450669,-1203.93931368,0.00013699,2]
[420587304,1776275450679,-1203.93931368,0.00013699,2]
[420587305,1776275450689,-1203.93931368,0.00013699,2]
[420587306,1776275450699,-1203.93931368,0.00013699,2]
[420587307,1776275450708,-1203.93931368,0.00013699,2]
[420587308,1776275450718,-1203.93931368,0.00013699,2]
[420587309,1776275450729,-1203.93931368,0.00013699,2]
[420587310,1776275450739,-1203.93931368,0.00013699,2]
[420587311,1776275450748,-1203.93931368,0.00013699,2]
[420587312,1776275450758,-1203.93931368,0.00013699,2]
[420587313,1776275450769,-1182.8703757,0.00013699,2]
[420587314,1776275450778,-1182.8703757,0.00013699,2]
[420587315,1776275450788,-1182.8703757,0.00013699,2]
[420587316,1776275450802,-1182.8703757,0.00013699,2]
[420587317,1776275450815,-1182.8703757,0.00013699,2]
[420587318,1776275450826,-1182.8703757,0.00013699,2]
[420587320,1776275450837,-1182.8703757,0.00013699,2]
[420587321,1776275450854,-1182.8703757,0.00013699,2]
[420587322,1776275450866,-1182.8703757,0.00013699,2]
[420587323,1776275450882,-1182.8703757,0.00013699,2]
[420587324,1776275450902,-1182.8703757,0.00013699,2]
[420587325,1776275450917,-1182.8703757,0.00013699,2]
[420587326,1776275450930,-1182.8703757,0.00013699,2]
[420587327,1776275450954,-1182.8703757,0.00013699,2]
[420587328,1776275450978,-1182.8703757,0.00013699,2]
[420587329,1776275450996,-1139.10887989,0.00013699,2]
[420587330,1776275451944,-43.76149581,0.00013699,2]
[420587331,1776275451956,-1182.8703757,0.00013699,2]
[420587332,1776275451966,-1182.8703757,0.00013699,2]
[420587333,1776275451976,-1182.8703757,0.00013699,2]
[420587334,1776275451986,-1182.8703757,0.00013699,2]
[420587335,1776275451997,-1182.8703757,0.00013699,2]
[420587336,1776275452009,-1182.8703757,0.00013699,2]
[420587337,1776275452020,-1182.8703757,0.00013699,2]
[420587338,1776275452030,-1182.87037561,0.00013699,2]
[420587339,1776275452041,-162.68,0.000137,2]
[420587340,1776275452053,-311.0107,0.000138,2]
[420587341,1776275452063,-166.66,0.00013836,2]
[420587342,1776275452073,-166.66,0.00013973,2]
[420587343,1776275452083,-500.0,0.00013989,2]
[420587344,1776275452093,-500.0,0.00013989,2]
[420587345,1776275452104,-1821.46289887,0.0001399,2]
[420587346,1776275452114,-622.0,0.00014052,2]
[420587347,1776275452125,-1348.0,0.00014052,2]
[420587348,1776275452135,-1265.0,0.00014052,2]
[420587349,1776275452145,-926.0,0.00014052,2]
[420587350,1776275452155,-1218.0,0.00014052,2]
[420587351,1776275452165,-6027.0,0.00014052,2]
[420587352,1776275452174,-3777.0,0.00014052,2]
[420587353,1776275452185,-416.0,0.00014052,2]
[420587354,1776275452196,-166.66,0.0001411,2]
[420587355,1776275452206,-1500.0,0.00014157,2]
[420587356,1776275452216,-166.66,0.00014247,2]
[420587357,1776275452226,-6453.0,0.00014319,2]
[420587358,1776275452237,-737.0,0.00014356,2]
[420587359,1776275452247,-2073.08,0.00014384,2]
[420587360,1776275452256,-166.66,0.00014384,2]
[420587361,1776275452266,-279.157151,0.00014406,7]
[420587362,1776275452276,-160.0,0.00014504,7]
[420587363,1776275452286,-442.604204,0.00014504,7]
[420587364,1776275452296,-725.208409,0.00014504,7]
[420587365,1776275452305,-2000.0,0.00014547,2]
[420587366,1776275452314,-1600.0,0.00014579,2]
[420587367,1776275452324,-1252.0,0.00014639,2]
[420587368,1776275452333,-9800.0,0.000147,5]
[420587369,1776275452342,-2000.0,0.00014705,2]
[420587370,1776275452352,-200.0,0.00014795,3]
[420587371,1776275452362,-200.0,0.00014795,3]
[420587372,1776275452373,-19600.0,0.000148,5]
[420587373,1776275452382,-167.91144294,0.000149,2]
[420587374,1776275452392,-29500.0,0.000149,5]
[420587375,1776275452402,-459.12574583,0.000149,2]
[420587376,1776275452411,-1574.0,0.0001498,2]
[420587377,1776275452421,-300.0,0.00015,2]
[420587378,1776275452430,-2073.08,0.00015068,2]
[420587379,1776275452440,-515.66,0.00015068,2]
[420587380,1776275452450,-5000.0,0.00015099,2]
[420587381,1776275452461,-18993.4032247,0.00015099,2]
[420587382,1776275452470,-1342.99179185,0.000151,2]
[420587383,1776275452481,-500.0,0.00015173,2]
[420587384,1776275452493,-500.0,0.00015173,2]
[420587385,1776275452504,-500.0,0.00015173,2]
[420587386,1776275452519,-500.0,0.00015173,2]
[420587387,1776275452534,-250.0,0.00015178,2]
[420587388,1776275452551,-37212.0,0.00015178,2]
[420587389,1776275452588,-17704.21200603,0.00015187,2]
[420587390,1776275452604,-431.56695156,0.0001519,2]
[420587391,1776275452654,-151.0,0.00015197,2]
[420587392,1776275452694,-151.0,0.00015197,2]
[420587393,1776275452735,-500.0,0.00015198,2]
[420587394,1776275452793,-500.0,0.00015198,2]
[420587395,1776275452859,-500.0,0.00015198,2]
[420587396,1776275452904,-500.0,0.00015198,2]
[420587397,1776275452937,-500.0,0.00015198,2]
[420587398,1776275452961,-500.0,0.00015198,2]
[420587399,1776275452996,-500.0,0.00015199,2]
[420587400,1776275453020,-500.0,0.00015199,2]
[420587401,1776275453036,-500.0,0.00015199,2]
[420587402,1776275453064,-524.23337382,0.00015199,2]
[420587403,1776275453074,-150.0,0.00015199,2]
[420587404,1776275453092,-500.0,0.00015199,2]
[420587405,1776275453138,-500.0,0.00015199,2]
[420587406,1776275453161,-500.0,0.00015199,2]
[420587407,1776275453174,-500.0,0.00015199,2]
[420587408,1776275453199,-500.0,0.00015199,2]
[420587409,1776275453210,-500.0,0.00015199,2]
[420587410,1776275453227,-500.0,0.00015199,2]
[420587411,1776275453242,-500.0,0.00015199,2]
[420587412,1776275453253,-500.0,0.00015199,2]
[420587413,1776275453266,-500.0,0.00015199,2]
[420587414,1776275453279,-500.0,0.00015199,2]
[420587415,1776275453291,-500.0,0.00015199,2]
[420587416,1776275453303,-500.0,0.00015199,2]
[420587417,1776275453313,-500.0,0.00015199,2]
[420587418,1776275453326,-500.0,0.00015199,2]
[420587419,1776275453337,-500.0,0.00015199,2]
[420587420,1776275453350,-500.0,0.00015199,2]
[420587421,1776275453361,-500.0,0.00015199,2]
[420587422,1776275453372,-500.0,0.00015199,2]
[420587423,1776275453382,-500.0,0.00015199,2]
[420587424,1776275453395,-500.0,0.00015199,2]
[420587425,1776275453405,-500.0,0.00015199,2]
[420587426,1776275453415,-500.0,0.00015199,2]
[420587427,1776275453425,-500.0,0.00015199,2]
[420587428,1776275453438,-500.0,0.00015199,2]
[420587429,1776275453447,-500.0,0.00015199,2]
[420587430,1776275453457,-7309.37730178,0.000152,2]
[420587431,1776275453470,-83306.37404457,0.000152,2]
[420587432,1776275453493,-545.96,0.000152,2]
[420587433,1776275453938,-56546.06814793,0.000152,2]
[420587434,1776275453972,-7108.85334181,0.000152,2]
[420587435,1776275453994,-10589.94625079,0.000152,2]
[420587436,1776275454008,-8079.19264069,0.000152,2]
[420587437,1776275454059,-248.76637278,0.00013697,2]
[420587438,1776275454080,-1260.18362222,0.000152,2]
[420587439,1776275454099,-432.87463303,0.000152,2]
[420587440,1776275471560,10000.0,0.000165,30]
[420587441,1776275472201,9436.0,0.000165,30]
[420587480,1776276096509,520.66,0.00012745,30]
[420587481,1776276096670,1041.32,0.00013523,30]
[420587482,1776276096944,1561.99,0.00014301,30]
[420587483,1776276097283,2082.65,0.00015079,30]
[420587484,1776276097414,2603.31,0.00015856,30]
[420587488,1776276186163,421.26,0.00013206,30]
[420587489,1776276186560,842.53,0.00014012,30]
[420587490,1776276187297,1263.79,0.00014818,30]
[420587491,1776276187413,1685.05,0.00015624,30]
[420587492,1776276188168,2106.32,0.0001643,30]
[420587494,1776276277351,340.84,0.00013347,30]
[420587495,1776276278165,681.68,0.00014162,30]
[420587496,1776276278929,1022.52,0.00014976,30]
[420587497,1776276279107,1363.36,0.00015791,30]
[420587498,1776276308309,150.0,8.581e-05,2]
[420587499,1776276311885,150.0,8.581e-05,2]
[420587500,1776276311959,150.0,8.717e-05,2]
[420587501,1776276312388,150.0,8.581e-05,2]
[420587502,1776276312470,150.67472572,8.581e-05,2]
[420587503,1776276318736,150.0,8.581e-05,2]
[420587506,1776276324343,254.3925733,8.581e-05,2]
[420587507,1776276324435,150.0,8.581e-05,2]
[420587509,1776276376175,297.46,0.00013694,30]
[420587510,1776276376643,594.92,0.0001453,30]
[420587511,1776276376962,892.38,0.00015365,30]
[420587512,1776276377446,1189.84,0.00016201,30]
[420587515,1776276465414,259.6,0.00013648,30]
[420587516,1776276465890,519.2,0.00014481,30]
[420587517,1776276466229,778.81,0.00015314,30]
[420587518,1776276466625,1038.41,0.00016147,30]
[420587521,1776276555040,226.56,0.00014469,30]
[420587522,1776276555420,453.12,0.00015352,30]
[420587523,1776276555704,679.69,0.00016235,30]
[420587525,1776276619805,158.85,8.487e-05,2]
[420587526,1776276622109,282.60138546,8.836e-05,30]
[420587528,1776276623269,423.90207819,8.899e-05,30]
[420587529,1776276623589,3279.07,8.442e-05,2]
[420587534,1776276632074,-150.0,8.819e-05,2]
[420587536,1776276632084,-250.0,8.836e-05,2]
[420587538,1776276632094,-150.0,8.853e-05,2]
[420587540,1776276632104,-150.0,8.899e-05,2]
[420587541,1776276632113,-16.7707529,8.899e-05,2]
[420587542,1776276632219,-133.2292471,8.899e-05,2]
[420587543,1776276632229,-150.0,8.989e-05,2]
[420587544,1776276632239,-249.5,9.041e-05,2]
[420587545,1776276632249,-150.0,9.058e-05,2]
[420587546,1776276632259,-150.0,9.126e-05,2]
[420587547,1776276632268,-152.47450076,9.195e-05,2]
[420587548,1776276632287,-6.37549924,9.195e-05,2]
[420587549,1776276632297,-150.0,9.2e-05,2]
[420587550,1776276632308,-1257.731298,9.215e-05,2]
[420587551,1776276632318,-492.03209874,9.216e-05,2]
[420587552,1776276632328,-150.0,9.216e-05,2]
[420587553,1776276632337,-150.0,9.216e-05,2]
[420587554,1776276632347,-150.0,9.262e-05,2]
[420587555,1776276632357,-150.0,9.296e-05,2]
[420587556,1776276632366,-300.0,9.363e-05,2]
[420587557,1776276632376,-653.08064957,9.363e-05,2]
[420587558,1776276632415,-441.91935043,9.363e-05,2]
[420587559,1776276632425,-300.0,9.363e-05,2]
[420587560,1776276632434,-418.02422028,9.363e-05,2]
[420587561,1776276632446,-781.97577972,9.363e-05,2]
[420587562,1776276632455,-3050.385,9.365e-05,2]
[420587563,1776276632465,-178.511,9.365e-05,2]